bitfinex-derivatives/quotes_SOLF0:USTF0_20220102
["timestamp","ask_amount","ask_price","bid_price","bid_amount"]
[1641147636806,26.09894938,176.92,176.91,12.01342774]
[1641147638511,26.09894938,176.92,176.86,15.88730226]
[1641147638512,26.09894938,176.92,176.9,12.01342774]
[1641147642312,26.09894938,176.92,176.89,12.01342774]
[1641147643714,9.94342817,176.93,176.89,12.01342774]
[1641147643916,4.01242817,176.93,176.89,12.01342774]
[1641147645816,49.1802,176.95,176.92,4.013076]
[1641147646017,39.7020745,176.96,176.92,4.013076]
[1641147646518,30.66479,176.93,176.92,4.013076]
[1641147646721,33.29979,176.93,176.92,4.013076]
[1641147649723,36.29979,176.93,176.89,12.01342774]
[1641147649923,3.0,176.92,176.89,6.68952697]
[1641147650123,3.0,176.91,176.89,6.68952697]
[1641147650422,30.66479,176.9,176.86,6.06021931]
[1641147650621,30.66479,176.9,176.87,4.01410478]
[1641147651425,8.65227221,176.88,176.86,4.01449869]
[1641147651723,3.0,176.87,176.86,4.01449869]
[1641147651921,13.70227221,176.88,176.86,4.01449869]
[1641147652322,10.70227221,176.88,176.81,6.06021931]
[1641147652522,27.66479,176.85,176.78,31.88710687]
[1641147652723,27.66479,176.85,176.77,49.8719]
[1641147653825,27.66479,176.85,176.78,6.06021931]
[1641147654623,27.66479,176.85,176.79,3.0]
[1641147654825,27.66479,176.85,176.8,3.0]
[1641147655026,27.66479,176.85,176.78,9.06021931]
[1641147655824,27.66479,176.85,176.79,3.0]
[1641147656225,30.66479,176.85,176.78,6.06021931]
[1641147656426,27.66479,176.82,176.78,6.06021931]
[1641147656626,33.08079,176.82,176.78,6.06021931]
[1641147656834,33.08079,176.82,176.76,31.88710687]
[1641147657026,33.08079,176.82,176.75,27.66479]
[1641147657225,33.08079,176.82,176.75,30.66479]
[1641147657426,33.08079,176.82,176.75,27.66479]
[1641147658227,33.08079,176.82,176.76,6.05944279]
[1641147658429,27.66479,176.79,176.76,6.05944279]
[1641147659226,27.66479,176.79,176.72,31.88710687]
[1641147659428,3.0,176.77,176.72,31.88710687]
[1641147659628,6.882,176.77,176.72,31.88710687]
[1641147660929,27.66479,176.79,176.7,3.0]
[1641147661129,27.66479,176.79,176.69,6.05944279]
[1641147661530,34.44879,176.79,176.69,6.05944279]
[1641147661828,34.44879,176.79,176.71,31.88710687]
[1641147662428,27.66479,176.76,176.71,31.88710687]
[1641147664235,27.66479,176.76,176.7,31.88710687]
[1641147666234,27.66479,176.76,176.68,50.991]
[1641147667236,3.0,176.75,176.68,50.991]
[1641147667435,5.245,176.75,176.68,50.991]
[1641147668136,5.245,176.75,176.72,3.0]
[1641147668337,27.66479,176.79,176.72,6.695]
[1641147669937,27.66479,176.79,176.71,27.66479]
[1641147671237,27.66479,176.79,176.72,7.32834329]
[1641147671442,30.66479,176.79,176.72,7.32834329]
[1641147671840,27.66479,176.79,176.71,31.88710687]
[1641147672240,3.0,176.78,176.71,31.88710687]
[1641147672439,3.0,176.77,176.71,31.88710687]
[1641147672640,27.66479,176.76,176.71,31.88710687]
[1641147673038,27.66479,176.76,176.69,7.32834329]
[1641147673941,27.66479,176.76,176.71,3.0]
[1641147674139,27.66479,176.76,176.69,7.32834329]
[1641147674348,50.1404,176.77,176.69,7.32834329]
[1641147674542,27.66479,176.79,176.72,1.26840447]
[1641147675241,27.66479,176.79,176.7,1.26840447]
[1641147675442,33.54879,176.79,176.7,7.32834329]
[1641147676451,36.54879,176.79,176.7,7.32834329]
[1641147676645,27.66479,176.76,176.7,7.32834329]
[1641147677045,27.66479,176.76,176.69,7.32834329]
[1641147680346,27.66479,176.76,176.72,12.02903802]
[1641147682649,27.66479,176.76,176.71,12.02903802]
[1641147683449,27.66479,176.76,176.72,12.02903802]
[1641147684350,27.66479,176.76,176.73,12.02903802]
[1641147686953,27.66479,176.76,176.72,12.02903802]
[1641147688153,27.66479,176.76,176.7,12.02903802]
[1641147689053,27.66479,176.76,176.72,12.02903802]
[1641147691457,55.1289,176.8,176.72,12.02903802]
[1641147692657,27.66479,176.75,176.72,12.02903802]
[1641147694460,27.66479,176.75,176.71,12.02903802]
[1641147695259,27.66479,176.78,176.71,12.02903802]
[1641147695461,27.66479,176.78,176.74,12.02903802]
[1641147695862,27.66479,176.78,176.74,18.23903802]
[1641147696462,27.66479,176.78,176.75,12.02903802]
[1641147697364,27.66479,176.78,176.75,13.29744249]
[1641147697564,21.2382795,176.78,176.75,13.29744249]
[1641147698062,21.2382795,176.78,176.75,12.02903802]
[1641147699765,21.2382795,176.78,176.74,12.02903802]
[1641147700365,25.7762795,176.78,176.74,12.02903802]
[1641147700565,25.7762795,176.78,176.72,15.02903802]
[1641147700767,25.7762795,176.78,176.72,12.02903802]
[1641147701566,21.2382795,176.78,176.72,12.02903802]
[1641147702668,2.7452671,176.77,176.71,1.26840447]
[1641147704166,8.3022671,176.77,176.71,19.3565427]
[1641147704666,27.66479,176.75,176.71,19.3565427]
[1641147708770,27.66479,176.75,176.71,1.26840447]
[1641147709469,27.66479,176.75,176.71,19.35658816]
[1641147710373,27.66479,176.75,176.73,12.02903802]
[1641147713072,27.66479,176.75,176.72,12.02903802]
[1641147713273,32.59379,176.75,176.72,12.02903802]
[1641147716777,32.59379,176.75,176.73,12.02903802]
[1641147717378,36.6107557,176.75,176.71,12.02903802]
[1641147718179,36.6107557,176.75,176.71,13.29744249]
[1641147720889,32.59379,176.75,176.74,4.01718369]
[1641147721592,35.34299837,176.75,176.74,4.01718369]
[1641147722289,30.41399837,176.75,176.74,4.01718369]
[1641147722688,27.66479,176.75,176.74,4.01718369]
[1641147723890,27.66479,176.75,176.71,12.02903802]
[1641147725292,27.66479,176.75,176.72,12.02903802]
[1641147726294,27.66479,176.75,176.71,12.02903802]
[1641147727899,64.15793802,176.8,176.73,3.0]
[1641147728096,64.15793802,176.8,176.73,9.302]
[1641147728297,64.15793802,176.8,176.74,3.0]
[1641147728496,12.02903802,176.8,176.74,3.0]
[1641147728696,12.02903802,176.8,176.73,6.302]
[1641147728697,12.02903802,176.81,176.75,3.0]
[1641147729097,12.02903802,176.81,176.74,46.565]
[1641147729496,12.02903802,176.81,176.74,49.565]
[1641147729699,2.74817215,176.81,176.78,4.01618545]
[1641147731297,2.74817215,176.81,176.79,4.01618545]
[1641147732399,62.09473802,176.85,176.77,12.02903802]
[1641147732899,27.66479,176.82,176.81,4.01595042]
[1641147733900,30.41270362,176.82,176.81,4.01595042]
[1641147734400,35.34470362,176.82,176.81,4.01595042]
[1641147737404,35.34470362,176.82,176.77,12.02903802]
[1641147738005,38.34470362,176.82,176.77,12.02903802]
[1641147738206,8.65466934,176.81,176.77,12.02903802]
[1641147738407,3.0,176.8,176.77,12.02903802]
[1641147738606,8.65466934,176.81,176.77,12.02903802]
[1641147738807,2.74791362,176.79,176.72,18.08781257]
[1641147739210,27.66479,176.75,176.72,18.08781257]
[1641147739407,33.35479,176.75,176.72,18.08781257]
[1641147740308,33.35479,176.75,176.72,12.02903802]
[1641147740508,33.35479,176.75,176.71,47.6105]
[1641147740710,33.35479,176.75,176.7,12.02903802]
[1641147740910,33.35479,176.75,176.71,3.0]
[1641147741410,33.35479,176.75,176.7,12.02903802]
[1641147744613,33.35479,176.75,176.72,3.0]
[1641147744814,5.69,176.75,176.72,3.0]
[1641147745016,12.02903802,176.78,176.72,3.0]
[1641147745215,12.02903802,176.78,176.71,47.2455]
[1641147745413,27.66479,176.79,176.71,59.27453802]
[1641147745613,27.66479,176.79,176.73,3.0]
[1641147745813,27.66479,176.79,176.71,59.27453802]
[1641147746316,2.74880735,176.78,176.73,12.02903802]
[1641147746915,8.29680735,176.78,176.72,21.08751418]
[1641147747114,8.29680735,176.78,176.72,21.30115947]
[1641147747517,5.548,176.78,176.72,21.30115947]
[1641147747715,5.548,176.78,176.75,12.02903802]
[1641147749418,27.66479,176.79,176.75,12.02903802]
[1641147749620,27.66479,176.79,176.74,12.02903802]
[1641147752625,27.66479,176.79,176.73,12.02903802]
[1641147753023,27.66479,176.79,176.73,15.02903802]
[1641147753924,27.66479,176.79,176.74,1.26513517]
[1641147754626,27.66479,176.79,176.73,13.29417319]
[1641147755727,27.66479,176.79,176.73,1.26513517]
[1641147756629,2.7435845,176.78,176.72,1.26513517]
[1641147756829,5.7435845,176.78,176.72,1.26513517]
[1641147757229,17.77262252,176.78,176.68,49.24023517]
[1641147757428,49.9428,176.77,176.68,49.24023517]
[1641147757828,27.66479,176.72,176.68,49.24023517]
[1641147758029,27.66479,176.72,176.68,1.26513517]
[1641147758230,27.66479,176.72,176.69,1.26513517]
[1641147759231,21.2367947,176.72,176.67,13.29417319]
[1641147759731,21.2367947,176.72,176.7,1.26513517]
[1641147759932,6.105,176.73,176.7,1.26513517]
[1641147760337,27.66479,176.72,176.7,1.26513517]
[1641147760736,27.66479,176.72,176.68,12.02903802]
[1641147763343,27.66479,176.72,176.7,12.02903802]
[1641147763542,3.0,176.71,176.66,33.15224204]
[1641147763745,30.66479,176.72,176.66,33.15224204]
[1641147763945,3.0,176.71,176.66,33.15224204]
[1641147764347,3.0,176.71,176.66,1.26513517]
[1641147764747,27.66479,176.67,176.66,1.26513517]
[1641147764947,32.06279,176.67,176.66,1.26513517]
[1641147765149,32.06279,176.67,176.63,1.26513517]
[1641147765549,4.398,176.67,176.63,1.26513517]
[1641147766150,27.66479,176.72,176.63,1.26513517]
[1641147766450,30.66479,176.72,176.63,1.26513517]
[1641147766650,27.66479,176.68,176.63,1.26513517]
[1641147766850,34.42779,176.68,176.63,1.26513517]
[1641147767958,34.42779,176.68,176.62,7.31147788]
[1641147775359,34.42779,176.68,176.62,10.31147788]
[1641147775560,34.42779,176.68,176.62,7.31147788]
[1641147776960,5.66267448,176.63,176.6,31.88710687]
[1641147777161,10.54767448,176.63,176.6,31.88710687]
[1641147777762,10.54767448,176.63,176.6,30.66710687]
[1641147778063,10.54767448,176.63,176.53,3.0]
[1641147778263,10.54767448,176.63,176.51,48.6833]
[1641147778761,10.54767448,176.63,176.52,9.82784716]
[1641147778963,13.54767448,176.63,176.52,9.82784716]
[1641147779564,10.54767448,176.63,176.52,9.82784716]
[1641147780868,38.21246448,176.63,176.52,9.82784716]
[1641147781366,41.21246448,176.63,176.52,9.82784716]
[1641147782368,3.0,176.61,176.5,30.88133079]
[1641147782569,52.5498,176.62,176.5,30.88133079]
[1641147782768,52.5498,176.62,176.5,27.66479]
[1641147782970,27.66479,176.58,176.5,27.66479]
[1641147783169,33.20879,176.58,176.5,27.66479]
[1641147783471,36.20879,176.58,176.47,27.66479]
[1641147784273,33.20879,176.58,176.47,27.66479]
[1641147784670,33.20879,176.58,176.49,3.0]
[1641147784870,33.20879,176.58,176.43,27.66479]
[1641147784871,5.66331587,176.54,176.43,27.66479]
[1641147785070,11.56031587,176.54,176.43,27.66479]
[1641147785771,11.56031587,176.54,176.44,49.5494]
[1641147786970,27.66479,176.5,176.44,49.5494]
[1641147788876,27.66479,176.47,176.44,49.5494]
[1641147789476,27.66479,176.47,176.38,97.9562]
[1641147789676,27.66479,176.47,176.38,3.0]
[1641147790175,27.66479,176.47,176.39,3.0]
[1641147791177,27.66479,176.47,176.38,12.8302231]
[1641147792278,27.66479,176.47,176.39,3.0]
[1641147792880,27.66479,176.47,176.4,27.66479]
[1641147793081,33.34179,176.5,176.4,27.66479]
[1641147793681,33.34179,176.5,176.38,12.8302231]
[1641147794082,33.34179,176.5,176.46,12.0673088]
[1641147794883,33.34179,176.5,176.45,12.0673088]
[1641147794884,5.6660434,176.47,176.45,12.0673088]
[1641147795081,33.3308334,176.47,176.45,12.0673088]
[1641147795483,27.66479,176.47,176.45,12.0673088]
[1641147795883,27.66479,176.47,176.42,12.0673088]
[1641147796782,27.66479,176.47,176.44,12.0673088]
[1641147798788,31.68779211,176.47,176.43,12.0673088]
[1641147798985,36.28679211,176.47,176.43,12.0673088]
[1641147799586,36.28679211,176.47,176.38,15.88660813]
[1641147799587,32.26379,176.47,176.44,12.0673088]
[1641147799787,5.66620393,176.45,176.44,12.0673088]
[1641147800388,5.66620393,176.45,176.42,4.02393405]
[1641147800988,27.66479,176.43,176.42,4.02393405]
[1641147801192,34.19779,176.43,176.42,4.02393405]
[1641147801994,38.22168002,176.43,176.42,4.02393405]
[1641147802694,34.19779,176.43,176.42,4.02393405]
[1641147802893,34.19779,176.43,176.41,4.02393405]
[1641147803693,38.22170952,176.43,176.42,4.02393405]
[1641147804496,38.22170952,176.43,176.38,12.0673088]
[1641147804795,38.22170952,176.43,176.39,12.0673088]
[1641147804996,27.66479,176.4,176.39,12.0673088]
[1641147805202,4.02391952,176.43,176.39,15.0673088]
[1641147805402,1e-08,176.43,176.42,4.02392752]
[1641147806298,60.25519701,176.52,176.39,54.9378]
[1641147806502,4.321,176.46,176.39,54.9378]
[1641147806997,4.321,176.46,176.4,27.66479]
[1641147807198,4.321,176.46,176.4,30.66479]
[1641147807399,4.321,176.46,176.4,27.66479]
[1641147808501,27.66479,176.49,176.4,27.66479]
[1641147811811,27.66479,176.49,176.39,54.9378]
[1641147812008,31.94079,176.49,176.39,54.9378]
[1641147812505,5.66524091,176.48,176.37,27.66479]
[1641147813007,17.73254971,176.48,176.39,12.0673088]
[1641147813805,60.45214091,176.48,176.4,12.0673088]
[1641147814608,72.51944971,176.48,176.4,12.0673088]
[1641147814808,5.666525,176.44,176.4,12.0673088]
[1641147815008,9.853525,176.44,176.4,12.0673088]
[1641147815409,9.853525,176.44,176.38,52.9144]
[1641147815708,9.853525,176.44,176.37,12.0673088]
[1641147816709,21.9208338,176.44,176.36,12.0673088]
[1641147817109,27.66479,176.41,176.36,12.0673088]
[1641147819615,21.22539725,176.41,176.36,12.0673088]
[1641147819917,21.22539725,176.41,176.37,12.0673088]
[1641147821616,9.853525,176.44,176.37,12.0673088]
[1641147822017,2.75882791,176.43,176.37,12.0673088]
[1641147822917,5.66748845,176.41,176.37,12.0673088]
[1641147823617,27.66479,176.4,176.37,12.0673088]
[1641147823817,32.75079,176.4,176.37,12.0673088]
[1641147824018,35.50961791,176.4,176.34,12.0673088]
[1641147824919,2.75882791,176.39,176.34,12.0673088]
[1641147825619,5.6679703,176.39,176.34,12.0673088]
[1641147825819,5.6679703,176.39,176.32,1.26547766]
[1641147826420,8.6679703,176.39,176.32,1.26547766]
[1641147826622,5.6679703,176.39,176.32,1.26547766]
[1641147826821,5.6679703,176.39,176.31,1.26547766]
[1641147827622,5.6679703,176.39,176.29,1.26547766]
[1641147828923,5.6679703,176.39,176.28,19.34830572]
[1641147829628,27.66479,176.37,176.28,19.34830572]
[1641147830026,27.66479,176.37,176.29,1.26547766]
[1641147830927,27.66479,176.37,176.29,13.33278646]
[1641147831526,5.6679703,176.39,176.3,1.26547766]
[1641147833029,27.66479,176.4,176.3,1.26547766]
[1641147833228,57.3437,176.43,176.3,7.33347766]
[1641147833629,27.66479,176.42,176.31,27.66479]
[1641147833830,33.00579,176.42,176.31,27.66479]
[1641147834031,33.00579,176.42,176.32,52.1077]
[1641147834232,33.00579,176.42,176.32,64.1750088]
[1641147834833,33.00579,176.42,176.33,1.26547766]
[1641147835031,33.00579,176.42,176.34,3.0]
[1641147835232,33.00579,176.42,176.33,1.26547766]
[1641147835631,33.00579,176.42,176.35,1.26547766]
[1641147836433,33.00579,176.42,176.37,12.0673088]
[1641147837742,27.66479,176.39,176.37,12.0673088]
[1641147838033,2.76008217,176.41,176.34,12.0673088]
[1641147839332,2.76008217,176.41,176.35,12.0673088]
[1641147841536,2.76008217,176.41,176.36,12.0673088]
[1641147842139,2.76008217,176.41,176.35,12.0673088]
[1641147843941,27.66479,176.39,176.35,12.0673088]
[1641147844143,34.31479,176.39,176.35,12.0673088]
[1641147845246,46.3820988,176.39,176.33,1.26547766]
[1641147846046,2.76008217,176.38,176.33,1.26547766]
[1641147846947,27.66479,176.39,176.33,19.38982183]
[1641147847447,2.76081868,176.38,176.33,19.38982183]
[1641147848949,2.76081868,176.38,176.33,1.26547766]
[1641147849849,27.66479,176.36,176.33,1.26547766]
[1641147850954,27.66479,176.36,176.32,12.0673088]
[1641147852655,27.66479,176.36,176.31,12.0673088]
[1641147853558,27.66479,176.36,176.29,53.5906]
[1641147854455,5.66925563,176.35,176.27,27.66479]
[1641147854655,10.21525563,176.35,176.27,27.66479]
[1641147854854,12.96399042,176.35,176.27,27.66479]
[1641147855558,12.96399042,176.35,176.28,1.26483778]
[1641147855559,14.81604359,176.34,176.28,1.26483778]
[1641147856459,2.74873479,176.34,176.28,1.26483778]
[1641147857763,2.74873479,176.34,176.29,3.0]
[1641147857960,2.74873479,176.34,176.29,7.717]
[1641147858163,2.74873479,176.34,176.32,3.0]
[1641147858362,2.74873479,176.34,176.29,7.717]
[1641147859664,14.81604359,176.38,176.3,13.33214658]
[1641147859865,14.81604359,176.38,176.31,52.2666]
[1641147860669,2.74873479,176.38,176.32,1.26483778]
[1641147863175,14.81604359,176.38,176.32,1.26483778]
[1641147864171,2.74873479,176.38,176.32,1.26483778]
[1641147866271,2.74873479,176.38,176.35,4.02641614]
[1641147867071,2.74873479,176.38,176.36,4.02641614]
[1641147867872,12.0673088,176.37,176.33,4.02641614]
[1641147870576,27.66479,176.36,176.33,4.02641614]
[1641147871877,2.74873479,176.35,176.33,4.02641614]
[1641147872480,12.0673088,176.37,176.33,4.02641614]
[1641147872981,27.66479,176.36,176.33,4.02641614]
[1641147873179,27.66479,176.36,176.32,5.29125392]
[1641147873982,2.74873479,176.35,176.32,5.29125392]
[1641147875483,2.74873479,176.35,176.33,4.02641614]
[1641147878586,2.74873479,176.35,176.32,1.26483778]
[1641147878787,5.66957705,176.34,176.29,12.0673088]
[1641147878988,5.66957705,176.34,176.29,9.30822707]
[1641147879189,27.66479,176.31,176.25,32.18646672]
[1641147879390,27.66479,176.31,176.24,3.0]
[1641147879590,27.66479,176.31,176.23,27.66479]
[1641147880794,27.66479,176.31,176.23,27.60523512]
[1641147881696,27.66479,176.31,176.24,3.0]
[1641147881893,27.66479,176.31,176.23,27.60523512]
[1641147882794,27.66479,176.31,176.24,6.05255605]
[1641147885705,27.66479,176.31,176.24,9.05255605]
[1641147886306,27.66479,176.31,176.24,6.05255605]
[1641147890713,27.66479,176.31,176.23,27.60523512]
[1641147891313,32.18646672,176.35,176.27,3.0]
[1641147891514,55.32958,176.36,176.27,8.902]
[1641147892112,55.32958,176.36,176.28,33.7669]
[1641147892713,3.0,176.34,176.24,6.05640473]
[1641147892913,5.66973777,176.34,176.23,27.60523512]
[1641147893312,27.66479,176.32,176.23,27.60523512]
[1641147893512,33.80079,176.32,176.23,30.60523512]
[1641147895113,33.80079,176.32,176.24,3.0]
[1641147895815,33.80079,176.32,176.23,30.60523512]
[1641147897017,33.80079,176.32,176.23,27.60523512]
[1641147901725,6.136,176.32,176.23,27.60523512]
[1641147901926,5.66973777,176.34,176.23,27.60523512]
[1641147903427,5.66973777,176.34,176.24,6.05644341]
[1641147904029,15.72364962,176.34,176.24,6.05644341]
[1641147904628,3.0,176.33,176.24,6.05644341]
[1641147904829,5.6710239,176.3,176.24,6.05644341]
[1641147905031,12.5770239,176.3,176.24,6.05644341]
[1641147905731,40.2418139,176.3,176.23,27.60523512]
[1641147906533,3.0,176.28,176.18,27.66479]
[1641147906734,5.67231062,176.26,176.18,27.66479]
[1641147906931,10.54731062,176.26,176.18,27.66479]
[1641147907133,10.54731062,176.26,176.18,59.85125672]
[1641147907732,4.875,176.26,176.19,6.05693554]
[1641147909433,4.875,176.26,176.2,12.08571489]
[1641147910334,4.875,176.26,176.19,18.14265043]
[1641147910534,17.75770377,176.27,176.19,18.14265043]
[1641147913036,5.67198888,176.27,176.21,12.08571489]
[1641147913837,27.66479,176.26,176.21,12.08571489]
[1641147914038,5.67198888,176.27,176.21,12.08571489]
[1641147915239,3.0,176.26,176.21,12.08571489]
[1641147915440,7.819,176.26,176.21,12.08571489]
[1641147915840,27.66479,176.25,176.21,12.08571489]
[1641147916243,27.66479,176.25,176.18,39.75050489]
[1641147916442,3.0,176.22,176.18,12.08571489]
[1641147916645,6.073,176.22,176.18,12.08571489]
[1641147917244,6.073,176.22,176.17,12.08571489]
[1641147921749,30.66479,176.25,176.17,12.08571489]
[1641147922150,27.66479,176.25,176.17,12.08571489]
[1641147922348,27.66479,176.25,176.17,18.37171489]
[1641147922648,2.76525709,176.24,176.17,18.37171489]
[1641147923552,2.76525709,176.24,176.18,1.26411161]
[1641147924459,2.76525709,176.24,176.19,12.08571489]
[1641147925154,2.76525709,176.24,176.18,12.08571489]
[1641147925753,27.66479,176.25,176.19,12.08571489]
[1641147926958,27.66479,176.25,176.2,12.08571489]
[1641147928657,2.76480027,176.24,176.18,19.40705083]
[1641147930260,2.76480027,176.24,176.19,12.08571489]
[1641147931163,2.76480027,176.24,176.18,19.40705083]
[1641147931761,2.76480027,176.24,176.19,12.08571489]
[1641147932763,2.76480027,176.24,176.18,19.40705083]
[1641147936961,2.76480027,176.24,176.18,1.26411161]
[1641147939565,4.0290101,176.22,176.21,4.0290101]
[1641147941268,2.76480027,176.24,176.21,4.0290101]
[1641147941469,2.76480027,176.24,176.21,9.2440101]
[1641147941666,12.08571489,176.26,176.21,9.2440101]
[1641147942471,2.76393539,176.26,176.22,1.26411161]
[1641147942875,27.66479,176.25,176.22,1.26411161]
[1641147943274,41.32108888,176.27,176.2,12.08571489]
[1641147943472,41.32108888,176.27,176.18,19.40759039]
[1641147943473,12.0875438,176.26,176.18,19.40759039]
[1641147944673,2.76470677,176.26,176.18,19.40759039]
[1641147944875,27.66479,176.24,176.18,19.40759039]
[1641147945571,21.218177,176.24,176.18,19.40759039]
[1641147945773,2.7651047,176.23,176.18,18.14320803]
[1641147945973,2.7651047,176.23,176.18,12.08571489]
[1641147946773,2.7651047,176.23,176.19,27.66479]
[1641147946972,2.7651047,176.23,176.19,32.23679]
[1641147947174,12.08729252,176.26,176.19,32.23679]
[1641147947475,5.67198888,176.27,176.2,12.08571489]
[1641147948776,2.76477182,176.26,176.21,12.08571489]
[1641147951380,2.76477182,176.26,176.2,1.26438236]
[1641147952784,5.67198888,176.27,176.2,1.26438236]
[1641147953583,5.67198888,176.27,176.2,7.42938236]
[1641147953784,2.75668849,176.26,176.2,7.42938236]
[1641147954585,5.67198888,176.27,176.21,1.26438236]
[1641147955187,2.76456974,176.26,176.21,1.26438236]
[1641147957088,2.76456974,176.26,176.21,28.92917236]
[1641147957388,2.76456974,176.26,176.22,1.26438236]
[1641147960794,2.76456974,176.26,176.2,1.26438236]
[1641147961494,2.76456974,176.26,176.2,19.40675929]
[1641147962098,2.76456974,176.26,176.2,13.35009725]
[1641147962296,2.76456974,176.26,176.2,1.26438236]
[1641147966003,14.85186226,176.26,176.2,1.26438236]
[1641147966802,14.85186226,176.26,176.2,5.73438236]
[1641147967403,14.85186226,176.28,176.22,27.66479]
[1641147968403,14.85186226,176.28,176.23,1.26438236]
[1641147968903,14.85186226,176.28,176.23,4.26438236]
[1641147969103,14.85186226,176.28,176.23,1.26438236]
[1641147969304,12.08729252,176.28,176.22,3.0]
[1641147969505,12.08729252,176.28,176.25,27.66479]
[1641147970204,12.08729252,176.31,176.26,1.26438236]
[1641147970508,12.8226675,176.32,176.28,3.0]
[1641147970705,32.18646672,176.35,176.31,3.0]
[1641147971004,32.18646672,176.35,176.34,3.0]
[1641147971506,27.18646672,176.35,176.34,3.0]
[1641147971705,16.18646672,176.38,176.34,3.0]
[1641147972404,16.18646672,176.38,176.35,3.0]
[1641147972605,16.18646672,176.38,176.35,9.071]
[1641147972804,48.11961284,176.44,176.35,9.071]
[1641147973009,14.32219545,176.45,176.35,9.071]
[1641147973204,14.32219545,176.45,176.36,3.0]
[1641147973407,14.32219545,176.45,176.35,6.071]
[1641147973607,14.32219545,176.45,176.37,3.0]
[1641147973805,14.32219545,176.45,176.35,3.0]
[1641147974109,36.12479,176.46,176.34,3.0]
[1641147974407,36.12479,176.46,176.35,3.0]
[1641147974606,36.12479,176.46,176.36,3.0]
[1641147974806,36.12479,176.46,176.36,7.411]
[1641147975107,36.12479,176.46,176.36,4.411]
[1641147975307,36.12479,176.46,176.32,31.522]
[1641147975508,42.93679,176.46,176.32,31.522]
[1641147975709,27.66479,176.4,176.32,31.522]
[1641147976908,33.24579,176.4,176.28,31.9194]
[1641147977109,33.24579,176.4,176.29,29.0133]
[1641147977608,27.66479,176.37,176.29,29.0133]
[1641147978508,33.33356356,176.37,176.26,27.66479]
[1641147979108,33.33356356,176.37,176.21,3.0]
[1641147979507,33.33356356,176.37,176.22,3.0]
[1641147979707,27.66479,176.32,176.22,3.0]
[1641147979907,27.66479,176.32,176.21,3.0]
[1641147980308,27.66479,176.32,176.2,30.66479]
[1641147980713,27.66479,176.32,176.21,3.0]
[1641147981508,27.66479,176.32,176.22,3.0]
[1641147981709,27.66479,176.32,176.2,27.66479]
[1641147981909,34.20879,176.32,176.2,27.66479]
[1641147982112,34.20879,176.32,176.19,31.9088]
[1641147982313,37.20879,176.32,176.19,31.9088]
[1641147982509,34.20879,176.32,176.19,31.9088]
[1641147983209,37.20879,176.32,176.19,31.9088]
[1641147983611,14.33019169,176.31,176.19,31.9088]
[1641147984408,41.99498169,176.32,176.19,31.9088]
[1641147984609,41.99498169,176.32,176.19,39.8528]
[1641147985212,27.66479,176.32,176.19,39.8528]
[1641147985612,27.66479,176.32,176.19,36.8528]
[1641147985814,27.66479,176.29,176.19,31.9088]
[1641147986011,34.35879,176.29,176.17,27.66479]
[1641147986211,5.67150635,176.28,176.13,27.66479]
[1641147986611,5.67150635,176.28,176.13,30.66479]
[1641147987711,8.67150635,176.28,176.13,27.66479]
[1641147987911,27.66479,176.23,176.13,27.66479]
[1641147988813,27.66479,176.23,176.13,30.66479]
[1641147989214,35.721,176.27,176.17,3.0]
[1641147989414,5.67150635,176.28,176.17,8.866]
[1641147989717,5.67150635,176.28,176.17,5.866]
[1641147990116,5.67150635,176.28,176.16,27.66479]
[1641147990316,9.94750635,176.28,176.16,27.66479]
[1641147991318,20.00112489,176.28,176.16,27.66479]
[1641147991815,27.66479,176.25,176.16,27.66479]
[1641147992715,27.66479,176.25,176.17,6.06358479]
[1641147992916,4.276,176.28,176.2,3.0]
[1641147993117,59.89914102,176.29,176.2,3.0]
[1641147993316,27.66479,176.29,176.19,3.0]
[1641147993819,27.66479,176.29,176.21,27.66479]
[1641147994219,27.66479,176.29,176.18,34.4851]
[1641147994419,32.33179,176.29,176.18,34.4851]
[1641147994619,5.67214974,176.26,176.17,6.06358479]
[1641147995619,5.67214974,176.26,176.16,27.66479]
[1641147995922,27.66479,176.23,176.16,27.66479]
[1641147996123,33.69979,176.23,176.16,27.66479]
[1641147996521,5.67359791,176.22,176.11,27.66479]
[1641147997420,5.67456377,176.19,176.07,66.84935102]